Cogmind - Beta 15 @@@ ROGUE MODE // 2025.08.07 @ 19:42:42 Player: Zoe Result: Destroyed by D-53 Grenadier with Mini Grenade Launcher Performance ------------- Evolutions (0) 0 Regions Visited (2) 400 Robots Destroyed (10) 50 Value Destroyed (226) 226 Prototype IDs (0) 0 Alien Tech Used (0) 0 Bonus (0) 0 TOTAL SCORE: 676 Bonus ------- None Cogmind --------- Core Integrity 0/250 Matter 266/300 Energy 95/100 System Corruption 0% Temperature Cool (0) Movement Core (200) Ox3 Location -10/Mines Parts ------- > --- POWER (1) -------- (None) > --- PROPULSION (2) --- (None) > --- UTILITY (2) ------ Medium Storage Unit > --- WEAPON (2) ------- (None) > --- INVENTORY (10) --- Light Treads Light Treads Sensor Array Signal Interpreter Seismic Detector Mining Laser Peak State ------------ > --- POWER ------------ Ion Engine > --- PROPULSION ------- Aluminum Leg Aluminum Leg > --- UTILITY ---------- Medium Storage Unit Improved Terrain Scanner > --- WEAPON ----------- Assault Rifle Light Assault Rifle > --- INVENTORY -------- Ion Engine Light Treads Light Treads Sensor Array Signal Interpreter Seismic Detector Light Assault Rifle Rocket Launcher Mining Laser [Rating: 10] Favorites ----------- Power Ion Engine Engine Ion Engine Propulsion Light Treads Treads Light Treads Leg Aluminum Leg Utility Small Storage Unit Device Improved Terrain Scanner Storage Small Storage Unit Weapon Assault Rifle Ballistic Gun Assault Rifle Launcher Rocket Launcher Special Weapon Mining Laser Build | -11 -10 -10 ------- Run | Yrd Mat Min Slots Evolved . | . . . Power . | . . . Propulsion . | . . . Utility . | . . . Weapon . | . . . Parts Attached 14 | 7 2 5 Power 2 | 1 . 1 Engine 2 | 1 . 1 Core . | . . . Reactor . | . . . Propulsion 4 | 2 . 2 Treads 2 | 2 . . Leg 2 | . . 2 Wheel . | . . . Hover . | . . . Flight . | . . . Utility 3 | 2 . 1 Device 1 | 1 . . Storage 2 | 1 . 1 Processor . | . . . Hackware . | . . . Protection . | . . . Artifact . | . . . Weapon 5 | 2 2 1 Energy Gun . | . . . Energy Cannon . | . . . Ballistic Gun 3 | 2 1 . Ballistic Cannon . | . . . Launcher 1 | . . 1 Special Weapon 1 | . 1 . Impact Weapon . | . . . Slashing Weapon . | . . . Piercing Weapon . | . . . Special Melee Weapon . | . . . Unidentified Prototypes . | . . . Parts Lost 9 | . . 9 Power 2 | . . 2 Propulsion 2 | . . 2 Utility 1 | . . 1 Weapon 4 | . . 4 Highest Loss Streak 9 | . . 9 To Critical Strikes . | . . . Average Backups 6 | 4 6 8 Power . | . 1 1 Propulsion 1 | 1 2 2 Utility 1 | . 1 3 Weapon 1 | 1 2 2 Tool/Special . | . . . Unused Backups 3 | . . 3 Power . | . . . Propulsion . | . . . Utility 3 | . . 3 Weapon . | . . . Tool/Special . | . . . Average Slot Usage (%) 98 | . 100 95 Engine 14 | . 14 14 Treads 18 | . 28 . Leg 9 | . . 25 Device 13 | . 14 13 Storage 14 | . 14 14 Ballistic Gun 25 | . 25 25 Special Weapon 1 | . 2 . Peak Build Rating 10 | 9 9 10 Average Rating 8 | 5 9 9 On Entrance 6 | . 9 9 Naked Turns . | . . . Heaviest Build 19 | 14 14 19 Greatest Support 40 | 40 40 20 Greatest Overweight (x) 1 | 1 . 1 Average Overweight (x) . | . . . Largest Inventory Capacity 10 | 8 8 10 Average Capacity 8 | 7 8 9 Most Carried 9 | 7 8 9 Average Carried 6 | 4 6 8 Final Capacity 10 | 8 8 10 Final Carried 8 | 6 8 6 Class Distribution -------------------- 100% | Mutant Dominant Class ---------------- Mutant | -10/Materials Mutant | -10/Mines Resources | -11 -10 -10 ----------- Run | Yrd Mat Min Matter Collected 442 | 318 64 60 Remotely . | . . . Salvage Created 388 | 147 229 12 Parts 21 | 8 12 1 Haulers Intercepted . | . . . Recyclers Shooed 1 | . . 1 Parts Field Recycled . | . . . Retrieved Matter . | . . . Parts Self-Destructed . | . . . Prevented . | . . . Kills | -11 -10 -10 ------- Run | Yrd Mat Min Combat Hostiles Destroyed 6 | . 5 1 Guns 6 | . 5 1 Classes Destroyed 5 | 2 2 1 Tunneler 2 | 2 . . Recycler 1 | 1 . . Operator 1 | . 1 . Swarmer 1 | . . 1 Grunt 5 | . 5 . Best Kill Streak 3 | 2 3 1 Combat Bots Only 3 | . 3 1 Max Kills in Single Turn 1 | 1 1 1 Gunslinging . | . . . Exploded . | . . . Melee . | . . . Uniques/NPCs Destroyed . | . . . Combat | -11 -10 -10 -------- Run | Yrd Mat Min Hostile Shots Fired 71 | . 46 25 Missed 10 | . 8 2 Hits 61 | . 38 23 Projectile 61 | . 38 23 AOE 17 | . . 17 Damage Taken 1192 | . 414 778 Core 267 | . 53 214 Absorbed by Shields . | . . . Core Remaining (%) 100 | 100 . . Volleys Fired 42 | 12 24 6 Largest 2 | 2 2 2 Hottest 100 | 40 100 40 Shots Fired 79 | 24 45 10 Gun 74 | 24 42 8 Cannon . | . . . Launcher 2 | . . 2 Special 3 | . 3 . Kinetic 74 | 24 42 8 Thermal 3 | . 3 . Explosive 2 | . . 2 Electromagnetic . | . . . Robot Hit Streak 12 | 5 12 4 Robot Miss Streak 1 | 1 1 1 Penetration Max . | . . . Secondary Targets . | . . . Shots Hit Robots 56 | 16 33 7 Core Hits 24 | 5 12 7 Critical Kills . | . . . Critical Parts Destroyed 1 | . 1 . Critical Strikes 1 | . 1 . Destroy 1 | . 1 . Melee Attacks . | . . . Impact . | . . . Slashing . | . . . Piercing . | . . . Sneak Attacks . | . . . Combat Hostiles . | . . . Follow-up Attacks . | . . . Damage Inflicted 588 | 163 357 68 Guns 561 | 163 355 43 Cannons . | . . . Explosions 25 | . . 25 Melee . | . . . Ramming 2 | . 2 . Kinetic 561 | 163 355 43 Thermal . | . . . Explosive 25 | . . 25 Electromagnetic . | . . . Impact . | . . . Slashing . | . . . Piercing . | . . . Highest Corruption . | . . . Average Corruption . | . . . Corruption Purged . | . . . Corruption Blocked . | . . . Overload Shots . | . . . Overflow Damage . | . . . Projectiles . | . . . Explosions . | . . . Melee . | . . . Knockbacks . | . . . Impact . | . . . Kinetic . | . . . Secondary . | . . . Self-Inflicted Damage 46 | . . 46 Shots 2 | . . 2 Rammed 1 | . 1 . Targets Rammed 1 | . 1 . Kicked . | . . . Crushed . | . . . Highest Temperature 40 | . 40 . Average Temperature 13 | . 13 . Received Heat Transfer 228 | . 228 . Siege Activations . | . . . Martial Activations . | . . . Shielding Activations . | . . . Robots Disrupted . | . . . Combat Hostiles . | . . . Robots Corrupted . | . . . Combat Hostiles . | . . . Parts Fried . | . . . Impact Corruptions . | . . . Robots Melted . | . . . Combat Hostiles . | . . . Parts Melted . | . . . Heat Transferred . | . . . Parts Sabotaged . | . . . Parts Stolen . | . . . Parts Stripped . | . . . Power Chain Reactions . | . . . Alert | -11 -10 -10 ------- Run | Yrd Mat Min Maximum Alert Level . | . . . Low Security (%) 100 | 100 100 100 Level 1 . | . . . Level 2 . | . . . Level 3 . | . . . Level 4 . | . . . Level 5 . | . . . High Security . | . . . Max Security . | . . . Peak Influence 66 | 5 66 45 Initial 2 | . . 2 Average 20 | . 34 12 Influence Increases 231 | 15 167 49 Destroy 0b10 Robot/C 120 | . 100 20 Destroy 0b10 Robot/NC 20 | 15 5 . Destroy Leader 20 | . 20 . Trap Triggered on 0b10 10 | . . 10 Successful Hack 27 | . 27 . Disable Machine 15 | . 15 . Destroy Structure 4 | . . 4 Lose Combat Pursuer 15 | . . 15 Influence Decreases 231 | 15 160 56 Entered New Map 5 | . . 5 Time Decay 222 | 15 160 47 Lost Part 4 | . . 4 Squads Dispatched 3 | . 3 . Investigation 3 | . 3 . Extermination . | . . . Reinforcement . | . . . Assault . | . . . Garrison . | . . . Intercept . | . . . Searches Triggered . | . . . Construction Impeded . | . . . Haulers Reinforced . | . . . Active Scanning Responses . | . . . Cargo Convoy Interrupts . | . . . Stealth | -11 -10 -10 --------- Run | Yrd Mat Min Distress Signals 2 | . 2 . Communications Jammed . | . . . Distress Signals . | . . . Times Spotted 17 | . 12 5 Peak Tracking Total 7 | . 7 3 Tactical Retreats 1 | . . 1 Traps | -11 -10 -10 ------- Run | Yrd Mat Min Traps Triggered . | . . . Indirectly . | . . . Trap Hack Attempts . | . . . Triggered . | . . . Disarmed . | . . . Reprogrammed . | . . . Reused 1 | . . 1 Traps Extracted . | . . . Installed 3 | . . 3 Triggered 1 | . . 1 Machines | -11 -10 -10 ---------- Run | Yrd Mat Min Machines Disabled 1 | . 1 . Max in Single Turn 1 | . 1 . Machines Repaired . | . . . Machines Dismantled . | . . . Machines Sabotaged . | . . . Overloaded Fab Kills . | . . . Hacking | -11 -10 -10 --------- Run | Yrd Mat Min Machines Accessed 4 | . 4 . Terminals 4 | . 4 . Fabricators . | . . . Repair Stations . | . . . Recycling Units . | . . . Scanalyzers . | . . . Garrison Access . | . . . Total Hacks 19 | . 19 . Successful 9 | . 9 . Failed 9 | . 9 . Catastrophic 4 | . 4 . Database Lockouts 1 | . 1 . Manual 11 | . 11 . Terminals 19 | . 19 . Fabricators . | . . . Repair Stations . | . . . Recycling Units . | . . . Scanalyzers . | . . . Garrison Access . | . . . Terminal Hacks 5 | . 5 . Robot Analysis 1 | . 1 . Dispatch Records 1 | . 1 . Surveillance Status 1 | . 1 . Hauler Manifests 1 | . 1 . Registered Components 1 | . 1 . Fabricator Hacks . | . . . Repair Station Hacks . | . . . Recycling Unit Hacks . | . . . Scanalyzer . | . . . Garrison Access Hacks . | . . . Unauthorized Hacks 4 | . 4 . Terminals 4 | . 4 . Botnet 4 | . 4 . Fabricators . | . . . Repair Stations . | . . . Recycling Units . | . . . Scanalyzers . | . . . Garrison Access . | . . . Data Cores Recovered 1 | . 1 . Used 1 | . 1 . Hacking Detections 4 | . 4 . Full Trace Events 4 | . 4 . Feedback Events . | . . . Feedback Blocked . | . . . Robot Schematics Acquired . | . . . Robots Built . | . . . Authchips . | . . . Time . | . . . Total Robot Build Rating . | . . . Part Schematics Acquired . | . . . Parts Built . | . . . Authchips . | . . . Time . | . . . Total Part Build Rating . | . . . Parts Repaired . | . . . Time . | . . . Parts Recycled . | . . . Recycled Matter . | . . . Retrieved Matter . | . . . Retrieved Components . | . . . Parts Scanalyzed . | . . . Part Schematics Acquired . | . . . Parts Damaged . | . . . Bothacking | -11 -10 -10 ------------ Run | Yrd Mat Min Used RIF Installer . | . . . Robots Hacked . | . . . Non-combat . | . . . Combat . | . . . Robot Hacks Applied . | . . . Relay Couplers Released . | . . . Fabnet Peak Effective % . | . . . Robots Rewired . | . . . Allies Hacked . | . . . Hacks Repelled . | . . . Allies | -11 -10 -10 -------- Run | Yrd Mat Min Total Allies 2 | . . 2 Largest Group 2 | . . 2 Highest-Rated Group 35 | . . 35 Highest-Rated Ally 31 | . . 31 Total Orders . | . . . Ally Attacks 1 | . . 1 Total Damage 20 | . . 20 Kills . | . . . Allies Corrupted . | . . . Allies Melted . | . . . Intel | -11 -10 -10 ------- Run | Yrd Mat Min Active Infowar (turns) 548 | 14 357 177 Terrain 548 | 14 357 177 Robot Analysis Total 1 | . 1 . Derelict Logs Recovered . | . . . Drone Launches . | . . . Drone Recoveries . | . . . Exploration | -11 -10 -10 ------------- Run | Yrd Mat Min Turns Passed 702 | 158 357 187 Spaces Moved 361 | 70 162 129 Core 6 | 6 . . Treads 226 | 64 162 . Legs 129 | . . 129 Wheels . | . . . Hover . | . . . Flight . | . . . Fastest Speed 50 | 50 160 120 Average Speed 144 | 151 160 120 Slowest Speed 190 | 160 160 190 Overloaded Moves . | . . . Propulsion Burnouts . | . . . Robots Hopped . | . . . Potential Cave-ins . | . . . Cave-ins Triggered . | . . . Exploration Rate (%) 20 | 5 31 25 Regions Visited 2 Branch Regions 1 Pre-discovered Areas . | . . . Known Exits Taken . | . . . Unknown Exits Taken 2 | 1 1 . Scrap Searched . | . . . Spaces Dug . | . . . Terrain Destroyed 11 | . . 11 Melee . | . . . Projectile . | . . . AOE 11 | . . 11 Terrain Rammed . | . . . Walls Destroyed . | . . . Machines Disabled . | . . . Actions | -11 -10 -10 --------- Run | Yrd Mat Min Total 464 | 101 212 151 Wait 26 | . 22 4 Move 359 | 69 161 129 Hop . | . . . Pick Up 16 | 13 2 1 Fast Attach . | . . . Attach 10 | 7 . 3 Detach . | . . . Swap 6 | . 2 4 Drop 1 | . . 1 Fire 42 | 12 24 6 Melee . | . . . Ram . | . . . Kick . | . . . Crush 1 | . 1 . Escape Stasis . | . . . Rewire . | . . . Trap 3 | . . 3 Miscellaneous . | . . . Route ------- -11/Scrapyard -10/Materials (discovered 2 exits: [*Min x2]) -10/Mines (discovered 1 exit: [*Mat]) History --------- Turn | Location | Event 12 | -11/Scrapyard | Discovered new exit (range 16) 159 | -11/Scrapyard | Entered Materials 246 | -10/Materials | Discovered new exit (range 16) 301 | -10/Materials | Central database locked down 317 | -10/Materials | Build established: Mutant 456 | -10/Materials | Discovered new exit (range 6) 516 | -10/Materials | Entered Mines 550 | -10/Mines | Found a hidden stash of uninstalled traps 583 | -10/Mines | Received a Rocket Launcher from a helpful Derelict 642 | -10/Mines | Discovered new exit (range 12) 680 | -10/Mines | Assembled infested the area 695 | -10/Mines | Core integrity fell below 50% 702 | -10/Mines | Core integrity fell below 20% 703 | -10/Mines | Destroyed by D-53 Grenadier with Mini Grenade Launcher Last Messages --------------- 00642_ EXIT=FOUND 00680_ ALERT: Infestation in the mines, dispatching Demolisher response squad. 00686_ C-30 ARC bursts open, deploying its payload. 00686_ D-53 Grenadier unfolds itself. 00687_ EC-2MA(z) destroyed. 00688_ Assault Rifle destroyed. 00688_ VX-MGM(g) destroyed. 00689_ Aluminum Leg destroyed. 00690_ Acquired 36 matter. 00692_ Aluminum Leg destroyed. 00693_ Imp. Terrain Scanner destroyed. 00696_ Lgt. Assault Rifle destroyed. 00697_ Ion Engine destroyed. 00699_ The unstable cave ceiling collapses. 00699_ Lgt. Assault Rifle destroyed. 00701_ Ion Engine destroyed. 00702_ The unstable cave ceiling collapses. 00703_ Rocket Launcher destroyed. Map ----- +----------------------------------------------------+ | ?## ##??# ! ! #???????????????? | | ?### ##?# ! #???????????????? | | ???## #### #???????????????? | | ????# =^ ####???????????????? | | ????## [ ^### ##?????#????????????? | | ??###### ##?####???????????????????? | | ?????### ##????????????????????????? | | ??###### #########????? ???????????? | | ??# #?????????????????? | | ??# #?????????????????? | | ??# #?????????????????? | | ?## """ """ """ #???????#?????????? | | ??# """ """ """ #? ???????????????? | | ??# """ """ """ #???? ????????????? | | ??# #?????????????????? | | ??# """ """ """ #?#???????????????? | | ??# """ """ """ ##????????????????? | | ??# """ """ """ #????????????????? | | ??# #????????????????? | | ??########## # #????????????????? | | ?????????### ???????????????????? | | ????????## #?? ????????????????? | | ?#?????## ##?#????????????????? | | ???????# # #?????#??????????? | | #???#?## # #????#???? ??????? | | ?????### @ #??#?????????????? | | ????## ##????????????????? | | #???# ##??????????? ?????? | | ????# #?????#????????????? | | ???## d ##??????????????????? | | #?## ##???????????????????? | | ?## #????????????????????? | | ?# r #????????? ??????????? | | ?# d%######????????????????????? | | ?# ##???????#?? ????????????? | | ?## ##?????#????????????????? | | ??## ####??????? ???????????? | | ???## ##??????????????????? | | ????# ##?????????????????? | | ????## #?#???????????????? | | ?????###### < #?????????????????? | | ???????#??# #?????????????????? | | ??????????## ###????????????????? | | ???????????#######??????????????????? | | ????????????????????????????????????? | | ???????????#?#?#????????????????????? | | ??????????????????#?????????????????? | | | | | | | +----------------------------------------------------+ Best States ------------- Heat Dissipation 25 Energy Generation 10 Energy Capacity 250 Matter Stores 300 Matter Capacity 300 Sight Range 16 Terrain Scan Range 16 Terrain Scan Density 10 Evasion (%) 55 Recoil Reduction 2 Item Schematics ----------------- None Robot Schematics ------------------ None Fabricated ------------ Nothing Repaired ---------- Nothing Alien Tech Used ----------------- None Achievements -------------- None Challenges ------------ None Game ------ Seed TrapBombMultitool Manual? 0 Play Time 00:10:30 Cumulative 34.3 hours Start 2025.08.07 @ 19:28:50 End 2025.08.07 @ 19:42:42 Sessions 1 Manual Loads 0 Difficulty Rogue Special Mode None Game No. 70 Rogue 67 Adventurer 3 Explorer 0 Win Type - Total 0 Types 0/0/0/0/0/0/0/0/0/0 Lore% 26 Gallery% 25 Achievement% 26 Wizard Run 0 Options --------- Layout 1 ASCII 0 Keyboard 0 Movement Mouse Keybinds 0 Fullscreen 1 Font 24/Smallcaps Map View 50x35 Zoom Use 0% Tactical HUD 1 Map Filters NONE Filters NONE Steam 1 RUN: 949733ff-92c4-471e-8a56-7bcdbf3e8876